[Event "4NCL 2023-2024"]
[Site "Daventry"]
[Date "2024.05.04"]
[Round "9.17"]
[White "Nasuta, Grzegorz"]
[Black "Durak, Can"]
[Result "1/2-1/2"]
[ECO "C42"]
[WhiteElo "2547"]
[BlackElo "2436"]
[Annotator "TA"]
[PlyCount "37"]
[EventDate "2023.11.11"]
[EventType "team-tourn"]
[EventCountry "ENG"]
[SourceTitle "playchess.com"]
[Source "ChessBase"]
[SourceQuality "1"]
[TimeControl "40/6000+30:3000+30"]

{[%evp 9,37,21,22,8,13,19,16,10,23,8,16,11,18,0,10,12,9,0,8,12,13,12,26,31,25,28,32,20,23,27]} 1. e4 {[%emt 0:00:03]} e5 {[%emt 0:00:37]} 2. Nf3 {[%emt 0:00:06]} Nf6 {[%emt 0:00:15]} 3. Nxe5 {[%emt 0:00:13]} d6 {[%emt 0:00:12]} 4. Nf3 {[%emt 0:00:06]} Nxe4 {[%emt 0:00:18]} 5. Bd3 {[%emt 0:00:09]} Nf6 {[%emt 0:01:11]} 6. O-O {[%emt 0:04:04]} Be7 {[%emt 0:00:44]} 7. c3 {[%emt 0:00:43]} O-O {[%emt 0:00:12]} 8. Bc2 {[%emt 0:02:08] The position is equal.} Bg4 {[%emt 0:01:10]} 9. h3 {[%emt 0:03:25]} Bh5 {[%emt 0:00:22]} 10. d4 {[%emt 0:00:14]} d5 {[%emt 0:03:48]} 11. Re1 {[%emt 0:01:50]} c6 {[%emt 0:02:39]} 12. Bf4 {[%emt 0:29:01]} Bd6 {[%emt 0:01:50]} 13. Be5 {[%emt 0:00:13]} Bc7 {[%emt 0:04:05]} 14. Nbd2 {[%emt 0:00:59]} Nbd7 {[%emt 0:00:31]} 15. Bf5 {[%emt 0:22:46]} Bg6 {[%emt 0:09:26]} 16. Bxg6 {[%emt 0:01:38]} hxg6 {[%emt 0:00:09]} 17. Qb3 {[%emt 0:00:18]} Qb8 {[%emt 0:01:13]} 18. Re3 {[%emt 0:02:22]} Nxe5 {[%emt 0:07:17]} 19. Nxe5 {[%emt 0:09:41] A rather calm draw.   Weighted Error Value: White=0.04 (flawless) /Black=0.04 (flawless) .  OK:         	White=6     	Black=5} 1/2-1/2

[Event "4NCL 2023-2024"]
[Site "Daventry"]
[Date "2024.05.04"]
[Round "9.18"]
[White "Bazakutsa, Svyatoslav"]
[Black "Fernandez, Daniel Howard"]
[Result "0-1"]
[ECO "A19"]
[WhiteElo "2473"]
[BlackElo "2526"]
[Annotator "TA"]
[PlyCount "72"]
[EventDate "2023.11.11"]
[EventType "team-tourn"]
[EventCountry "ENG"]
[SourceTitle "playchess.com"]
[Source "ChessBase"]
[SourceQuality "1"]
[TimeControl "40/6000+30:3000+30"]

{[%evp 24,72,20,0,0,15,15,20,16,-18,-39,-91,-92,-102,-91,-87,-71,-56,-79,-132,-101,-87,-26,-27,-21,-10,0,0,0,0,0,9,138,121,114,0,0,-102,-30,-409,-196,-29990,-29991,-29992,-29990,-29993,-29976,-29976,-29974,-5716,-5701]} 1. c4 {[%emt 0:01:35]} Nf6 {[%emt 0:00:16]} 2. Nc3 {[%emt 0:00:31]} e6 {[%emt 0:00:07]} 3. e4 {[%emt 0:00:50]} c5 {[%emt 0:00:07]} 4. e5 {[%emt 0:00:09]} Ng8 {[%emt 0:00:03]} 5. d4 {[%emt 0:00:11]} cxd4 {[%emt 0:00:07]} 6. Qxd4 {[%emt 0:00:09]} Nc6 {[%emt 0:00:05]} 7. Qf4 {[%emt 0:00:09] A19: English Opening: Flohr-Mikenas System with 3...c5.} d6 {[%emt 0:00:08]} 8. Nf3 {[%emt 0:00:08]} Nh6 {[%emt 0:00:07] is now debated instead of 8...Nge7.} 9. Qe4 {[%emt 0:25:46]} Nxe5 $146 {[%emt 0:00:09]} ({Predecessor:} 9... dxe5 10. Bxh6 gxh6 11. Nxe5 Qb6 12. O-O-O Bg7 13. Na4 Qc7 14. Nxc6 bxc6 15. g4 Rb8 {0-1 Bartel,M (2651)-Tabatabaei,M (2694) London Classic 13th 2023 (6)}) 10. Nxe5 {[%emt 0:03:10]} dxe5 {[%emt 0:00:02]} 11. Bxh6 {[%emt 0:01:32]} gxh6 {[%emt 0:00:02]} 12. Qxe5 {[%emt 0:00:11]} Rg8 {[%emt 0:00:06]} 13. Rd1 {[%emt 0:01:39]} Bd7 $1 {[%emt 0:00:03]} 14. Ne4 {[%emt 0:48:03]} (14. Nd5 $5 Qa5+ $8 15. Rd2 $11) 14... Bg7 {[%emt 0:02:19]} 15. Nd6+ {[%emt 0:07:10]} Kf8 {[%emt 0:00:15]} 16. Qc5 {[%emt 0:00:05]} Qe7 {[%emt 0:05:26]} 17. Nxb7 {[%emt 0:03:34] [#]} (17. Bd3 $15) 17... Rc8 $1 $17 {[%emt 0:00:20]} 18. Qd6 {[%emt 0:07:02] [#]} (18. Qxa7 $2 Bc6 (18... Bxb2 19. Nd6 $15) 19. Rd2 Bxb7 $19) 18... Bc6 $1 {[%emt 0:03:36]} 19. Na5 {[%emt 0:00:02]} Ba8 {[%emt 0:00:26]} 20. Qd2 {[%emt 0:00:53]} Bf6 {[%emt 0:02:55]} 21. h4 {[%emt 0:01:53]} (21. Qxh6+ $142 Ke8 22. h4) 21... Kg7 {[%emt 0:00:18]} (21... Bxg2 22. Bxg2 Rxg2 23. Kf1 $15) 22. Rh3 {[%emt 0:00:17]} Rgd8 {[%emt 0:01:02]} (22... Bxh4 $6 23. Qd7 $11) (22... Kh8 $17) 23. Rg3+ $11 {[%emt 0:03:11]} Kh8 {[%emt 0:00:27]} 24. Qxh6 {[%emt 0:00:30]} Qb4+ {[%emt 0:08:41]} 25. Rd2 {[%emt 0:00:09]} Be5 {[%emt 0:00:09]} 26. Bd3 $1 {[%emt 0:01:54]} f5 {[%emt 0:00:34]} (26... Qxa5 27. Qxh7#) 27. Nb3 {[%emt 0:01:49]} Rc7 {[%emt 0:06:31]} (27... Bxg3 $11 28. Qf6+ (28. Qxe6 $2 Re8 $19) 28... Kg8 29. fxg3 (29. Qxe6+ Kg7 $14) 29... Re8) 28. Re3 $16 {[%emt 0:00:57]} Bxb2 {[%emt 0:00:24]} 29. Ke2 {[%emt 0:00:43]} (29. Qxe6 f4 30. Re5 Rg7 $11 (30... Rxd3 31. Qf6+ Rg7 32. Re8+)) (29. a3 $16 Qxb3 30. Bc2) 29... Bc3 $11 {[%emt 0:02:37]} 30. Rd1 {[%emt 0:00:39]} (30. Qxe6 $11 f4 31. Bxh7 (31. Re5 $2 Rg7 $19)) 30... Qa4 {[%emt 0:03:14]} (30... Bxg2 $17 31. Bxf5 Bf1+ (31... Qxc4+ 32. Bd3 $17) 32. Rxf1 exf5) 31. Nc1 $2 {[%emt 0:00:33][%mdl 8192]} (31. Rd2 $11 {and White is okay.}) 31... Rb7 {[%emt 0:01:21]} (31... Bxg2 $142 {Strongly threatening ...Rxc4.} 32. Rg3 Rxc4) 32. Qxe6 $2 {[%emt 0:00:34]} (32. Rd2 $19 Rbd7 (32... Rb1 33. Rc2 $11) 33. g3) 32... Rb2+ {[%emt 0:00:08]} 33. Kf1 {[%emt 0:00:31]} Qxd1+ {[%emt 0:00:09]} 34. Re1 {[%emt 0:00:02]} Qxe1+ {[%emt 0:00:23]} (34... Bxe1 35. Qf6+ Kg8 36. Qxd8+ Kf7 37. Qd7+ Kg8 38. Qe6+ Kf8 39. Qxf5+ (39. Qxe1 Bxg2+ 40. Kxg2 Qxe1 41. Ne2 Rxe2 42. Bxe2 Qxe2 43. c5 f4 44. c6 Ke7 45. c7 Kd7 46. a4 Kxc7 47. a5 Qg4+ 48. Kf1 f3 49. a6 Qxh4 50. Ke1 Qd4 51. Kf1 Qd1#) (39. Qf6+ Ke8 $11) 39... Kg8 40. Qe6+ Kh8 41. Qc8+ (41. Qxe1 $2 Bxg2+ 42. Kxg2 Qxe1 $19) (41. Qf6+ Kg8 $11) 41... Kg7 42. Qd7+ Kf8 43. Qd8+ (43. Qxa7 $2 Bxf2#) (43. Qf5+ Kg7 $11) 43... Kg7 44. Qg5+ (44. Qxa8 $2 Bxf2#) (44. Qd4+ Kf8 $11) (44. Qe7+ Kg8 $11) 44... Kf7 45. Qf5+ (45. Bxh7 $2 Bxf2#) 45... Ke8 46. Qe6+ Kf8 47. Qd6+ (47. Qxe1 Bxg2+ 48. Kxg2 Qxe1 49. Ne2 Qd2 50. c5 Qxd3 51. Nf4 Qe3 52. Nh3 Rxa2 53. c6 Qe4+ 54. Kh2 Qxc6 55. Kg3 Ra3+ 56. Kh2 Qf3 57. Ng1 Qxf2+ 58. Kh1 Ra1 59. h5 Rxg1#) (47. Qf5+ Ke7 $11) 47... Kg7 48. Qd7+ (48. Qe7+ Kg8 $11) 48... Kf6 49. Qd6+ (49. Qxa7 $2 Bxf2#) (49. Qf5+ Ke7 $11) 49... Kg7 (49... Kf7 $2 50. Bg6+ hxg6 51. Qxd1 $18) 50. Qe7+ Kg8 51. Qxh7+ (51. Qxe1 $2 Bxg2+ 52. Kxg2 Qxe1 $19) 51... Kf8 52. Qf5+ (52. Qxa7 $2 Bxf2#) (52. Qh8+ Kf7 $11) 52... Ke7 53. Qh7+ Kd6 54. Qh6+ (54. Qxa7 $2 Bxf2#) 54... Kd7 55. Qg7+ Ke6 (55... Kd8 56. Qf8+ Kd7 57. Qf7+ Kd8 58. Qf8+ Kd7 59. Bf5+ Kc7 60. Qe7+ Kb6 61. c5+ Kb5 62. Qd7+ Qxd7 63. Bxd7+ Bc6 64. a4+ Kc4 65. Bxc6 $16) 56. Qg8+ Kd7 57. Qf7+ (57. Qxa8 $2 Bxf2#) (57. Qg7+ Kc8 $11) 57... Kd8 58. Qf8+ Kd7 (58... Kc7 $2 59. Qe7+ Kc6 60. Qxe1 $18) 59. Bf5+ (59. Qxa8 $2 Bxf2#) (59. Qg7+ Ke6 $11) 59... Kc7 60. Qe7+ (60. Qxa8 $2 Bxf2#) (60. Qg7+ Kb6 $11) 60... Kb6 61. c5+ Kb5 62. Qd7+ Qxd7 (62... Kxc5 $2 63. Qxd1 Rxf2+ 64. Kxe1 $18) 63. Bxd7+ Bc6 64. a4+ (64. Bxc6+ Kxc6 65. Kxe1 a5 $14) 64... Kc4 (64... Kxc5 $2 65. Nd3+ Kd6 66. Nxb2 $18) 65. Bxc6 $16) 35. Qxe1 {[%emt 0:00:02]} Bxg2+ {[%emt 0:00:16]} 36. Kxg2 {[%emt 0:00:02]} Bxe1 {[%emt 0:00:09]} 0-1

[Event "4NCL 2023-2024"]
[Site "Daventry"]
[Date "2024.05.04"]
[Round "9.19"]
[White "Makkar, Rajat"]
[Black "Czopor, Maciej"]
[Result "1/2-1/2"]
[ECO "A13"]
[WhiteElo "2455"]
[BlackElo "2363"]
[Annotator "TA"]
[PlyCount "54"]
[EventDate "2023.11.11"]
[EventType "team-tourn"]
[EventCountry "ENG"]
[SourceTitle "playchess.com"]
[Source "ChessBase"]
[SourceQuality "1"]
[TimeControl "40/6000+30:3000+30"]

{[%evp 14,54,9,0,20,20,12,24,16,7,16,0,10,2,7,15,22,4,2,0,8,0,0,-15,0,-23,-18,-13,-5,-34,-45,-28,-32,-27,-28,-69,0,-10,0,-81,0,-17,0]} 1. c4 {[%emt 0:00:26]} e6 {[%emt 0:00:08]} 2. g3 {[%emt 0:00:15]} d5 {[%emt 0:00:08]} 3. Bg2 {[%emt 0:00:24]} Nf6 {[%emt 0:00:07]} 4. Nf3 {[%emt 0:00:40]} d4 {[%emt 0:00:08]} 5. O-O {[%emt 0:00:18]} c5 {[%emt 0:00:05]} 6. e3 {[%emt 0:00:24]} Nc6 {[%emt 0:00:08]} 7. exd4 {[%emt 0:00:17]} cxd4 {[%emt 0:00:06]} 8. d3 {[%emt 0:00:09]} Bd6 {[%emt 0:00:08]} 9. Bg5 {[%emt 0:00:11]} h6 {[%emt 0:00:05]} 10. Bxf6 {[%emt 0:00:05]} Qxf6 {[%emt 0:00:05] White has an edge.} 11. Nbd2 {[%emt 0:00:07]} Qe7 {[%emt 0:00:07]} 12. Re1 {[%emt 0:01:02]} O-O {[%emt 0:01:40]} 13. Nb3 {[%emt 0:00:09]} Qf6 {[%emt 0:01:21]} 14. c5 {[%emt 0:01:31]} Bc7 {[%emt 0:00:27]} 15. Rc1 {[%emt 0:00:19]} Rd8 {[%emt 0:10:35]} 16. Nbd2 {[%emt 0:07:40]} Qe7 {[%emt 0:06:24]} 17. Qa4 {[%emt 0:02:46]} a5 {[%emt 0:13:30]} 18. a3 {[%emt 0:01:24] [#] Strongly threatening b4.} Bd7 {[%emt 0:10:01]} 19. Nxd4 {[%emt 0:26:26]} (19. Re4 $5) 19... Nxd4 {[%emt 0:00:28]} 20. Qxd4 {[%emt 0:00:48][%cal Od4c3]} Bb5 $1 {[%emt 0:00:09][%csl LRd3,LRd4]} 21. Qc3 {[%emt 0:03:35]} Rxd3 {[%emt 0:02:23]} 22. Qc2 {[%emt 0:00:41][%cal Og2f1]} Rad8 {[%emt 0:00:55]} 23. Ne4 {[%emt 0:02:26]} R3d4 {[%emt 0:07:12]} 24. Qc3 {[%emt 0:04:04][%cal Oe4d6]} Rd3 {[%emt 0:01:25]} (24... a4 $1 $15) 25. Qc2 $11 {[%emt 0:00:17]} R3d4 {[%emt 0:00:04]} (25... Bc6 $11) 26. Qc3 $17 {[%emt 0:02:11][%cal Oe4d6]} Rd3 {[%emt 0:00:06]} (26... a4 $17 27. b4 (27. Nd6 Rd3 $17) 27... axb3 28. Qxb3 Bc6) 27. Qc2 $11 {[%emt 0:00:06]} R3d4 {[%emt 0:00:05] Weighted Error Value: White=0.08 (flawless) /Black=0.12 (very precise) .  Mistake:       	---       	Black=3      Inaccurate:     	White=2     	---        OK:         	White=9     	Black=10     Best:        	White=2     	Black=1      Strong:       	---       	Black=1} 1/2-1/2

[Event "4NCL 2023-2024"]
[Site "Daventry"]
[Date "2024.05.04"]
[Round "9.20"]
[White "Yao, Lan"]
[Black "Ghasi, Ameet K"]
[Result "0-1"]
[ECO "B09"]
[WhiteElo "2382"]
[BlackElo "2491"]
[Annotator "TA"]
[PlyCount "68"]
[EventDate "2023.11.11"]
[EventType "team-tourn"]
[EventCountry "ENG"]
[SourceTitle "playchess.com"]
[Source "ChessBase"]
[SourceQuality "1"]
[TimeControl "40/6000+30:3000+30"]

{[%evp 13,68,13,13,-8,-16,-39,-33,-40,-33,-24,-35,-37,-20,-59,-26,-36,-48,-50,-29,-53,-62,-62,-62,-179,-152,-164,-162,-198,-207,-214,-208,-211,-203,-231,-231,-260,-245,-247,-236,-224,-224,-227,-213,-278,-273,-278,-269,-237,-235,-250,-250,-256,-246,-995,-1000,-1000,-940]} 1. e4 {[%emt 0:00:04]} d6 {[%emt 0:02:47]} 2. d4 {[%emt 0:00:14]} g6 {[%emt 0:01:07]} 3. Nc3 {[%emt 0:00:36]} Nf6 {[%emt 0:02:26]} 4. f4 {[%emt 0:00:22]} Bg7 {[%emt 0:01:15]} 5. Nf3 {[%emt 0:00:19]} O-O {[%emt 0:00:07]} 6. e5 {[%emt 0:10:51]} dxe5 {[%emt 0:03:16]} 7. fxe5 {[%emt 0:00:13]} Nd5 {[%emt 0:00:50]} 8. Nxd5 {[%emt 0:00:25]} Qxd5 {[%emt 0:00:27]} 9. Be2 {[%emt 0:07:42]} c5 {[%emt 0:15:30]} 10. c3 {[%emt 0:00:37] Black is slightly better.} cxd4 {[%emt 0:04:43][%cal Ob8c6]} 11. cxd4 {[%emt 0:00:12]} Nc6 {[%emt 0:00:45]} 12. O-O {[%emt 0:06:18]} Bf5 {[%emt 0:07:55]} 13. Qa4 {[%emt 0:24:00]} Rac8 {[%emt 0:12:56]} 14. Be3 {[%emt 0:03:05]} Qd7 {[%emt 0:01:08][%cal Oc6e5]} 15. Qa3 {[%emt 0:06:56]} Rfd8 {[%emt 0:02:40]} 16. Rad1 {[%emt 0:03:30]} h6 {[%emt 0:05:54] Inhibits Ng5.} 17. Bb5 {[%emt 0:23:14] d5 would now be deadly.} Be4 {[%emt 0:10:03]} 18. Nd2 {[%emt 0:04:24] [#] Black continues to play with concentration.} ({Better is} 18. Bf2 $15) 18... Bxg2 $1 $19 {[%emt 0:05:50][%mdl 512]} 19. Kxg2 {[%emt 0:03:11] Qb3 is the strong threat.} Qd5+ {[%emt 0:00:17]} 20. Kg1 {[%emt 0:05:03]} Qxb5 {[%emt 0:00:31]} 21. Qb3 {[%emt 0:00:15]} Qxb3 {[%emt 0:01:28]} ({Not} 21... Nxd4 22. Bxd4 (22. Qxf7+ $2 {loses.} Kh7 $19) 22... Qxb3 23. Nxb3 $16) 22. Nxb3 {[%emt 0:00:02]} Nb4 {[%emt 0:01:27]} 23. a3 {[%emt 0:06:16]} Nd5 {[%emt 0:00:18]} 24. Bf2 {[%emt 0:00:36]} Rc2 {[%emt 0:01:44] White is weak on the light squares} 25. Rd2 {[%emt 0:00:16]} Rxd2 {[%emt 0:01:05]} 26. Nxd2 {[%emt 0:00:02]} Rc8 {[%emt 0:00:09]} 27. Ne4 {[%emt 0:02:13]} Rc2 {[%emt 0:00:41]} 28. Rb1 {[%emt 0:00:47]} b6 {[%emt 0:04:39]} 29. Kf1 {[%emt 0:00:32]} f6 {[%emt 0:00:29]} 30. exf6 {[%emt 0:01:06]} Nxf6 {[%emt 0:03:22]} 31. Nxf6+ {[%emt 0:00:41]} Bxf6 {[%emt 0:00:39]} 32. b3 {[%emt 0:00:45]} Kf7 {[%emt 0:00:18]} 33. Re1 $2 {[%emt 0:01:04] [#]} (33. d5) 33... Rxf2+ $1 {[%emt 0:00:45][%mdl 512]} 34. Kxf2 {[%emt 0:00:18]} Bh4+ {[%emt 0:00:05] Weighted Error Value: White=0.51/Black=0.05 (flawless) .  Mistake:       	White=2     	---        Inaccurate:     	White=2     	Black=1      OK:         	White=9     	Black=12     Brilliant:      	---       	Black=2} ({Weaker is} 34... Bxd4+ 35. Kg2 $11) 0-1

[Event "4NCL 2023-2024"]
[Site "Daventry"]
[Date "2024.05.04"]
[Round "9.22"]
[White "Willow, Jonah B"]
[Black "Grieve, Harry"]
[Result "1-0"]
[ECO "C70"]
[WhiteElo "2417"]
[BlackElo "2476"]
[Annotator "TA"]
[PlyCount "67"]
[EventDate "2023.11.11"]
[EventType "team-tourn"]
[EventCountry "ENG"]
[SourceTitle "playchess.com"]
[Source "ChessBase"]
[SourceQuality "1"]
[TimeControl "40/6000+30:3000+30"]

{[%evp 9,67,64,54,47,66,59,74,58,50,60,64,82,101,78,105,118,110,119,117,77,95,0,143,120,106,106,158,164,201,198,246,250,245,247,261,324,333,335,312,212,218,216,221,230,223,206,193,162,139,161,154,167,156,1,208,184,697,209,2274,2126]} 1. e4 {[%emt 0:00:05]} e5 {[%emt 0:00:02]} 2. Nf3 {[%emt 0:01:09]} Nc6 {[%emt 0:00:04]} 3. Bb5 {[%emt 0:03:21][%cal Bf1b5,Bb5a4,Ba4b3][%mdl 32]} a6 {[%emt 0:00:03]} 4. Ba4 {[%emt 0:00:05]} f5 {[%emt 0:00:03]} 5. d4 {[%emt 0:01:04]} exd4 {[%emt 0:00:04]} 6. e5 {[%emt 0:00:04][%cal Oe1g1]} (6. Nxd4 Nxd4 7. Qxd4 Nf6 $16) (6. exf5 Qe7+ 7. Kf1 Qe4 $11) 6... b5 {[%emt 0:00:04]} 7. Bb3 {[%emt 0:00:03][%cal Oe1g1]} Na5 {[%emt 0:00:03]} 8. Qxd4 {[%emt 0:00:05] aiming for Bxg8. White is better.} Bb7 {[%emt 0:00:04]} 9. Bd5 {[%emt 0:05:41]} c6 {[%emt 0:00:04]} 10. Bxg8 {[%emt 0:03:59]} Rxg8 {[%emt 0:00:00]} 11. Qd3 $40 {[%emt 0:30:43][%mdl 128] Black is in trouble.} ({Reject} 11. Bg5 $6 Qc7 $15) 11... g6 {[%emt 0:13:15]} 12. O-O {[%emt 0:03:06]} Be7 {[%emt 0:12:09]} 13. Re1 {[%emt 0:19:04]} Qc7 {[%emt 0:06:23]} 14. Qd6 {[%emt 0:11:49]} Qd8 {[%emt 0:08:56]} 15. Qd3 {[%emt 0:13:42]} ({White should try} 15. Qd1) 15... Qc7 $1 $16 {[%emt 0:00:05]} 16. Bg5 {[%emt 0:00:29]} Bxg5 {[%emt 0:59:05]} 17. Nxg5 {[%emt 0:00:11][%cal Ob1d2] Threatens to win with Nd2!} Rg7 {[%emt 0:00:27]} (17... h6 $142) 18. e6 {[%emt 0:04:25] White has more active pieces. The black rooks are passive.} d5 {[%emt 0:01:12]} 19. Nf7 {[%emt 0:06:06]} Nc4 {[%emt 0:00:01]} (19... Kf8 {keeps fighting.} 20. b4 Nc4) 20. b3 $18 {[%emt 0:01:46]} Nd6 {[%emt 0:03:39]} 21. Qg3 {[%emt 0:00:22]} Ke7 {[%emt 0:00:01]} 22. Nd2 {[%emt 0:00:54] Nf3 is the strong threat.} Rc8 {[%emt 0:01:49]} 23. Qe5 {[%emt 0:01:12]} Ne8 {[%emt 0:01:43]} 24. Qd4 {[%emt 0:00:04]} c5 {[%emt 0:01:35]} 25. Qh4+ {[%emt 0:00:08]} Kf8 {[%emt 0:00:46] [#]} 26. Nf3 $1 {[%emt 0:00:59]} Qe7 {[%emt 0:00:24]} 27. Qf4 {[%emt 0:01:31]} Nf6 {[%emt 0:00:40]} 28. Nd6 {[%emt 0:00:34] Dodges Ne4} Rc6 {[%emt 0:00:57]} 29. Nxb7 {[%emt 0:00:36]} Qxb7 {[%emt 0:00:01] [#]} 30. Ne5 $1 {[%emt 0:01:11]} Rb6 {[%emt 0:01:51][%cal Ob7e7]} (30... Rxe6 $2 31. Nxg6+ Rxg6 32. Rxe6 $18) 31. Nf7 $2 {[%emt 0:00:40]} ({White should play} 31. Re2 $16) 31... Ke7 $2 {[%emt 0:00:00]} (31... Qe7 $11 {and Black has nothing to worry.}) 32. Rad1 {[%emt 0:00:33][%cal Og2g4]} Ne4 $2 {[%emt 0:00:28]} (32... Rxf7 33. exf7+ Kxf7) 33. Qh6 $2 {[%emt 0:00:44]} (33. Rxe4 {Qg5+ would kill now.} Rxf7 34. Rxd5 (34. exf7+ dxe4 35. Qh4+ Kxf7 $18)) 33... Kf6 {[%emt 0:00:29] [#]} (33... Kf8 34. Qf4 d4 (34... Rxe6 $2 {too greedy.} 35. Nd8 $18)) 34. Rxe4 $1 {[%emt 0:00:25][%mdl 512] Weighted Error Value: White=0.40/Black=0.33.  Loses game:     	---       	Black=1      Mistake:       	White=3     	Black=4      Inaccurate:     	White=2     	Black=1      OK:         	White=12    	Black=6      Best:        	---       	Black=3      Strong:       	White=2     	Black=1} 1-0

[Event "4NCL 2023-2024"]
[Site "Daventry"]
[Date "2024.05.04"]
[Round "9.23"]
[White "Slaby, Jerzy"]
[Black "Jackson, James P"]
[Result "1-0"]
[ECO "C77"]
[WhiteElo "2465"]
[BlackElo "2355"]
[Annotator "TA"]
[PlyCount "65"]
[EventDate "2023.11.11"]
[EventType "team-tourn"]
[EventCountry "ENG"]
[SourceTitle "playchess.com"]
[Source "ChessBase"]
[SourceQuality "1"]
[TimeControl "40/6000+30:3000+30"]

{[%evp 12,65,14,10,16,-2,-5,-26,-26,-17,-22,-23,-20,-22,0,0,0,-38,-19,-42,-30,-39,0,0,25,-50,0,-7,0,0,0,0,0,0,0,0,37,33,31,37,2422,2325,12829,5441,5477,2062,2224,2040,5414,5402,5891,5828,5477,5397,2126,2126]} 1. e4 {[%emt 0:00:25]} e5 {[%emt 0:00:08]} 2. Nf3 {[%emt 0:00:51]} Nc6 {[%emt 0:00:05]} 3. Bb5 {[%emt 0:02:27][%cal Bf1b5,Bb5a4,Ba4b3][%mdl 32]} a6 {[%emt 0:01:00]} 4. Ba4 {[%emt 0:00:23]} Nf6 {[%emt 0:00:54]} 5. d3 {[%emt 0:06:14]} b5 {[%emt 0:04:10]} 6. Bb3 {[%emt 0:00:03]} Bc5 {[%emt 0:00:06]} 7. Nc3 {[%emt 0:03:06]} h6 {[%emt 0:12:47]} 8. h3 {[%emt 0:02:20]} d6 {[%emt 0:00:42]} 9. Be3 {[%emt 0:04:16]} Bxe3 {[%emt 0:14:09] Black has an edge.} 10. fxe3 {[%emt 0:00:10]} Na5 {[%emt 0:00:04]} 11. O-O {[%emt 0:03:07]} O-O {[%emt 0:02:53]} 12. Qe1 {[%emt 0:02:46]} Nxb3 {[%emt 0:03:57]} 13. axb3 {[%emt 0:00:07]} c6 {[%emt 0:05:58]} 14. g4 {[%emt 0:12:33]} Ra7 {[%emt 0:12:52]} 15. Qg3 {[%emt 0:18:15]} Re8 {[%emt 0:02:26]} 16. Rf2 {[%emt 0:04:43]} d5 {[%emt 0:08:38]} 17. exd5 {[%emt 0:11:03]} (17. Nxe5 $2 Qd6 18. exd5 Nxd5 $19 (18... Rxe5 $2 19. e4 $19) (18... Qxe5 $2 19. Qxe5 Rxe5 20. dxc6 $19)) 17... cxd5 {[%emt 0:00:45]} 18. Rg2 {[%emt 0:08:48]} (18. Nxe5 Qc7 19. d4 b4 20. Nxd5 (20. Rxf6 $2 gxf6 21. Nxd5 Qd8 $19) 20... Nxd5 21. Rxf7 Re7 22. Rxe7 Qxe7 $19 (22... Nxe7 23. Qf2 $17)) (18. Nxb5 $1 $11 Rae7 19. Nc3) 18... d4 {[%emt 0:07:40]} 19. exd4 {[%emt 0:02:43]} exd4 {[%emt 0:00:06]} 20. Nxb5 {[%emt 0:01:06][%cal Bc3b5,Bb5a3,Ba3c4,Bc4e5,Be5f7,Bf7h8][%mdl 32] A dynamic duo of knights.} Rd7 {[%emt 0:01:18]} 21. Na3 {[%emt 0:04:43]} Bb7 {[%emt 0:04:02]} 22. Nc4 {[%emt 0:02:16]} Nd5 {[%emt 0:05:00] [#] White must now prevent ...g5.} 23. g5 {[%emt 0:03:11]} (23. Nxd4 Nf4 24. Qxf4 (24. Rf2 $2 Nxh3+ 25. Qxh3 Rxd4 $19) 24... Rxd4 $19) 23... Ne3 {[%emt 0:06:35]} 24. gxh6 {[%emt 0:01:12][%csl Gg2,Gh6][%cal Rg3g7]} g6 {[%emt 0:00:04]} 25. Rf2 {[%emt 0:02:45] aiming for Nfe5.} Rd5 {[%emt 0:02:24][%mdl 8192] Loses the game.} (25... Bxf3 $14 26. Rxf3 (26. Qxf3 Re6 $11) 26... Rd5) 26. Nfe5 $18 {[%emt 0:01:04] White is clearly winning.} Rdxe5 {[%emt 0:12:58]} 27. Nxe5 {[%emt 0:00:02]} Qd5 {[%emt 0:00:07]} 28. h7+ {[%emt 0:02:05]} (28. Nxf7 $2 Qh1#) 28... Kh8 {[%emt 0:01:23]} 29. Nxf7+ {[%emt 0:00:59]} Kg7 {[%emt 0:00:42]} 30. Kh2 {[%emt 0:00:02] Rg1 would kill now.} (30. h8=N $2 Qh1#) 30... Nf5 {[%emt 0:00:35] [#]} 31. Rxf5 $1 {[%emt 0:01:51]} Qxf5 {[%emt 0:00:07]} 32. h8=Q+ {[%emt 0:00:24]} ({Worse is} 32. h8=R Re2+ 33. Kg1 Rg2+ 34. Qxg2 Bxg2 35. Kxg2 Qd5+ 36. Kg3 Qxf7 $11) 32... Rxh8 {[%emt 0:01:07]} 33. Nxh8 {[%emt 0:00:06] Weighted Error Value: White=0.11 (very precise) /Black=0.18 (very precise) .  Loses game:     	---       	Black=1      Mistake:       	White=1     	---        Inaccurate:     	White=1     	Black=4      OK:         	White=6     	Black=9      Best:        	White=1     	---} 1-0